fUST/lending_fUST_20241027
["ID","MTS","AMOUNT","RATE_DAILY","PERIOD"]
[340895721,1730040065656,-151.0,0.00039589,120]
[340895722,1730040065679,-500.0,0.00039726,120]
[340895723,1730040065701,-151.0,0.00039945,120]
[340895724,1730040065724,-28270.32824384,0.0003999,120]
[340895726,1730040224422,500.0,0.00034246,120]
[340895727,1730040224446,499.0,0.00034246,120]
[340895728,1730040224696,325.66008857,0.00035205,120]
[340895729,1730040224720,260.1251,0.00035205,120]
[340895730,1730040224746,413.21481143,0.00035205,120]
[340895731,1730040224993,999.0,0.00036164,120]
[340895732,1730040225329,87.78518857,0.00037123,120]
[340895733,1730040225351,911.21481143,0.00037123,120]
[340895734,1730040225633,87.78518857,0.00038082,120]
[340895738,1730040480753,999.0,0.00034246,120]
[340895739,1730040480993,487.47604451,0.00035205,120]
[340895740,1730040481016,511.52395549,0.00035205,120]
[340895751,1730040590931,200.0,0.00013973,2]
[340895798,1730040632475,-300.0,0.00027276,2]
[340895801,1730040632485,-300.0,0.00027276,2]
[340895804,1730040632496,-77.0,0.00027277,2]
[340895824,1730040638836,-860.95986895,0.00027277,2]
[340895825,1730040638848,-3310.84238111,0.00027277,2]
[340895826,1730040638860,-3554.89085391,0.00027277,2]
[340895827,1730040638871,-114.88967929,0.00027287,2]
[340895828,1730040639247,-1878.2187092,0.00027287,2]
[340895829,1730040639258,-914.52353104,0.00027287,2]
[340895830,1730040639270,-156.99361091,0.00027287,2]
[340895831,1730040639280,-156.99361091,0.00027296,2]
[340895832,1730040639291,-500.0,0.00027373,2]
[340895833,1730040639301,-500.49102421,0.00027373,2]
[340895834,1730040639311,-500.0,0.00027373,2]
[340895835,1730040639323,-500.0,0.00027373,2]
[340895836,1730040639333,-215.874,0.00027373,16]
[340895837,1730040639345,-181.89166018,0.00027376,2]
[340895838,1730040639355,-7493.17187201,0.00027377,4]
[340895852,1730040640482,-35671.04223419,0.00027377,4]
[340895853,1730040640495,-1657.86555165,0.00027377,4]
[340895854,1730040640506,-295.51,0.00027377,3]
[340895855,1730040640516,-886.56,0.00027377,3]
[340895856,1730040640527,-847.35,0.00027377,10]
[340895857,1730040640539,-500.0,0.00027386,2]
[340895858,1730040640551,-500.0,0.00027386,2]
[340895859,1730040640563,-500.0,0.00027386,2]
[340895860,1730040640575,-500.0,0.00027386,2]
[340895861,1730040640586,-500.0,0.00027386,2]
[340895862,1730040640596,-497.54147016,0.00027386,2]
[340895863,1730040640605,-190.47563875,0.00027386,2]
[340895864,1730040640615,-500.0,0.00027386,2]
[340895865,1730040640625,-500.0,0.00027386,2]
[340895866,1730040640634,-500.0,0.00027386,2]
[340895867,1730040640645,-500.0,0.00027386,2]
[340895868,1730040640656,-500.0,0.00027386,2]
[340895869,1730040640667,-500.0,0.00027386,2]
[340895870,1730040640677,-500.0,0.00027386,2]
[340895871,1730040640686,-55496.846708,0.00027387,4]
[340895872,1730040640696,-2131.54142355,0.00027387,4]
[340895873,1730040640705,-4273.47080046,0.00027394,2]
[340895874,1730040640715,-2377.96980971,0.00027396,2]
[340895875,1730040640724,-406.09817642,0.00027396,2]
[340895876,1730040640733,-283.71392968,0.00027397,30]
[340895877,1730040640743,-500.0,0.00027397,30]
[340895878,1730040640752,-554.79115601,0.00027397,30]
[340895879,1730040640762,-500.0,0.00027397,30]
[340895880,1730040640771,-500.0,0.00027397,30]
[340895881,1730040640780,-500.0,0.00027397,30]
[340895882,1730040640789,-500.0,0.00027397,30]
[340895883,1730040640799,-500.0,0.00027397,30]
[340895884,1730040640808,-500.0,0.00027397,30]
[340895885,1730040640817,-500.0,0.00027397,30]
[340895886,1730040640827,-500.0,0.00027397,30]
[340895887,1730040640836,-500.0,0.00027397,30]
[340895888,1730040640846,-872.5,0.00027397,30]
[340895889,1730040640855,-262.01023254,0.00027397,30]
[340895890,1730040640865,-500.0,0.00027397,30]
[340895891,1730040640874,-1533.74,0.00027397,7]
[340895892,1730040640883,-500.0,0.00027397,30]
[340895893,1730040640894,-900.66,0.00027397,30]
[340895894,1730040640903,-502.63,0.00027397,30]
[340895895,1730040640913,-500.0,0.00027397,30]
[340895896,1730040640922,-150.3524153,0.00027397,30]
[340895897,1730040640931,-762.72,0.00027397,30]
[340895898,1730040640941,-969.42,0.00027397,30]
[340895899,1730040640950,-834.57,0.00027397,30]
[340895900,1730040640960,-500.0,0.00027397,10]
[340895901,1730040640970,-841.65,0.00027397,30]
[340895902,1730040640979,-500.0,0.00027397,30]
[340895903,1730040640989,-500.0,0.00027397,30]
[340895904,1730040640999,-500.0,0.00027397,30]
[340895905,1730040641009,-587.09053829,0.00027397,30]
[340895906,1730040641018,-500.0,0.00027397,30]
[340895907,1730040641028,-270.71469262,0.00027397,30]
[340895908,1730040641037,-500.0,0.00027397,30]
[340895909,1730040641046,-500.0,0.00027397,30]
[340895910,1730040641055,-1751.81,0.00027397,30]
[340895911,1730040641065,-638.98,0.00027397,30]
[340895912,1730040641074,-500.0,0.00027397,30]
[340895913,1730040641084,-500.0,0.00027397,30]
[340895914,1730040641094,-500.0,0.00027397,30]
[340895915,1730040641104,-1150.95,0.00027397,30]
[340895916,1730040641114,-670.02,0.00027397,30]
[340895917,1730040641123,-873.69,0.00027397,30]
[340895918,1730040641132,-151.0,0.00027397,7]
[340895919,1730040641141,-151.0,0.00027397,7]
[340895920,1730040641151,-151.0,0.00027397,7]
[340895921,1730040641160,-171.499845,0.00027397,7]
[340895922,1730040641171,-500.0,0.00027397,30]
[340895923,1730040641180,-1362.13,0.00027397,30]
[340895924,1730040641190,-317.12560361,0.00027397,30]
[340895925,1730040641200,-573.37,0.00027397,30]
[340895926,1730040641209,-500.0,0.00027397,30]
[340895927,1730040641219,-1042.33,0.00027397,30]
[340895928,1730040641228,-500.0,0.00027397,30]
[340895929,1730040641238,-500.0,0.00027397,30]
[340895930,1730040641248,-151.0,0.00027397,7]
[340895931,1730040641257,-500.0,0.00027397,30]
[340895932,1730040641267,-902.8,0.00027397,30]
[340895933,1730040641277,-500.0,0.00027397,30]
[340895934,1730040641286,-500.0,0.00027397,30]
[340895935,1730040641296,-151.0,0.00027397,7]
[340895936,1730040641305,-151.0,0.00027397,7]
[340895937,1730040641315,-151.0,0.00027397,7]
[340895938,1730040641324,-151.0,0.00027397,7]
[340895939,1730040641334,-151.0,0.00027397,7]
[340895940,1730040641344,-151.0,0.00027397,7]
[340895941,1730040641354,-151.0,0.00027397,7]
[340895942,1730040641363,-500.0,0.00027397,30]
[340895943,1730040641372,-500.0,0.00027397,30]
[340895944,1730040641382,-500.0,0.00027397,30]
[340895945,1730040641391,-500.0,0.00027397,30]
[340895946,1730040641401,-500.0,0.00027397,30]
[340895947,1730040641410,-554.87400879,0.00027397,30]
[340895948,1730040641419,-586.05750939,0.00027397,30]
[340895949,1730040641429,-557.67,0.00027397,30]
[340895950,1730040641438,-500.0,0.00027397,30]
[340895951,1730040641447,-978.98,0.00027397,30]
[340895952,1730040641456,-892.6,0.00027397,30]
[340895953,1730040641466,-808.69,0.00027397,30]
[340895954,1730040641476,-2622.68,0.00027397,30]
[340895955,1730040641485,-559.80697533,0.00027397,30]
[340895956,1730040641497,-500.0,0.00027397,30]
[340895957,1730040641506,-456.14707754,0.00027397,30]
[340895958,1730040641516,-500.0,0.00027397,30]
[340895959,1730040641525,-500.0,0.00027397,30]
[340895960,1730040641534,-500.0,0.00027397,30]
[340895961,1730040641543,-500.0,0.00027397,30]
[340895962,1730040641553,-500.0,0.00027397,30]
[340895963,1730040641562,-500.0,0.00027397,30]
[340895964,1730040641571,-289.158866,0.00027397,7]
[340895965,1730040641581,-500.0,0.00027397,30]
[340895966,1730040641590,-500.0,0.00027397,30]
[340895967,1730040641599,-500.0,0.00027397,30]
[340895968,1730040641610,-500.0,0.00027397,30]
[340895969,1730040641619,-500.0,0.00027397,30]
[340895970,1730040641629,-700.07,0.00027397,30]
[340895971,1730040641638,-239.30540907,0.00027397,30]
[340895972,1730040641648,-1963.43,0.00027397,30]
[340895973,1730040641657,-500.0,0.00027397,30]
[340895974,1730040641667,-775.26,0.00027397,30]
[340895975,1730040641676,-500.0,0.00027397,30]
[340895976,1730040641685,-500.0,0.00027397,30]
[340895977,1730040641694,-151.0,0.00027397,7]
[340895978,1730040641704,-911.2,0.00027397,30]
[340895979,1730040641713,-500.0,0.00027397,30]
[340895980,1730040641723,-500.0,0.00027397,30]
[340895981,1730040641734,-500.0,0.00027397,30]
[340895982,1730040641744,-500.0,0.00027397,30]
[340895983,1730040641754,-500.0,0.00027397,30]
[340895984,1730040641763,-151.0,0.00027397,7]
[340895985,1730040641774,-151.0,0.00027397,7]
[340895986,1730040641785,-151.0,0.00027397,7]
[340895987,1730040641795,-151.0,0.00027397,7]
[340895988,1730040641804,-151.0,0.00027397,7]
[340895989,1730040641814,-151.0,0.00027397,7]
[340895990,1730040641823,-151.0,0.00027397,7]
[340895991,1730040641833,-3154.32,0.00027397,30]
[340895992,1730040641843,-500.0,0.00027397,30]
[340895993,1730040641852,-1620.0,0.00027397,30]
[340895994,1730040641862,-590.19,0.00027397,30]
[340895995,1730040641873,-1378.91,0.00027397,30]
[340895996,1730040641883,-500.0,0.00027397,30]
[340895997,1730040641894,-500.0,0.00027397,30]
[340895998,1730040641905,-1409.75,0.00027397,30]
[340895999,1730040641916,-2856.83,0.00027397,30]
[340896000,1730040641927,-500.0,0.00027397,30]
[340896001,1730040641938,-500.0,0.00027397,30]
[340896002,1730040641948,-188.261166,0.00027397,7]
[340896003,1730040641961,-500.58,0.00027397,30]
[340896004,1730040641971,-544.77985384,0.00027397,30]
[340896005,1730040641982,-500.0,0.00027397,30]
[340896006,1730040641992,-627.87,0.00027397,30]
[340896007,1730040642002,-1243.23,0.00027397,30]
[340896008,1730040642012,-151.0,0.00027397,7]
[340896009,1730040642023,-151.0,0.00027397,7]
[340896010,1730040642034,-151.0,0.00027397,7]
[340896011,1730040642046,-151.0,0.00027397,7]
[340896012,1730040642056,-151.0,0.00027397,7]
[340896013,1730040642068,-151.0,0.00027397,7]
[340896014,1730040642078,-605.48268628,0.00027397,30]
[340896015,1730040642088,-151.0,0.00027397,7]
[340896016,1730040642099,-153.915122,0.00027397,7]
[340896017,1730040642109,-827.49,0.00027397,30]
[340896018,1730040642119,-306.55509186,0.00027397,30]
[340896019,1730040642128,-712.67,0.00027397,30]
[340896020,1730040642137,-500.0,0.00027397,30]
[340896021,1730040642146,-500.0,0.00027397,30]
[340896022,1730040642156,-500.0,0.00027397,30]
[340896023,1730040642166,-500.0,0.00027397,30]
[340896024,1730040642175,-908.65,0.00027397,30]
[340896025,1730040642185,-1635.91,0.00027397,30]
[340896026,1730040642195,-500.0,0.00027397,30]
[340896027,1730040642206,-413.00779401,0.00027397,30]
[340896028,1730040642215,-500.0,0.00027397,30]
[340896029,1730040642225,-500.0,0.00027397,30]
[340896030,1730040642234,-151.0,0.00027397,7]
[340896031,1730040642244,-500.0,0.00027397,30]
[340896032,1730040642253,-151.0,0.00027397,7]
[340896033,1730040642266,-151.0,0.00027397,7]
[340896034,1730040642276,-151.0,0.00027397,7]
[340896035,1730040642286,-500.0,0.00027397,30]
[340896036,1730040642295,-151.0,0.00027397,7]
[340896037,1730040642305,-151.0,0.00027397,7]
[340896038,1730040642315,-151.0,0.00027397,7]
[340896039,1730040642324,-844.85,0.00027397,30]
[340896040,1730040642334,-500.0,0.00027397,30]
[340896041,1730040642344,-500.0,0.00027397,30]
[340896042,1730040642353,-500.0,0.00027397,30]
[340896043,1730040642363,-987.93,0.00027397,30]
[340896044,1730040642372,-188.0,0.00027397,2]
[340896045,1730040642381,-500.0,0.00027397,30]
[340896046,1730040642391,-1734.34,0.00027397,30]
[340896047,1730040642401,-500.0,0.00027397,30]
[340896048,1730040642411,-500.0,0.00027397,30]
[340896049,1730040642420,-478.43809682,0.00027397,30]
[340896050,1730040642433,-1092.96,0.00027397,30]
[340896051,1730040642443,-500.0,0.00027397,30]
[340896052,1730040642453,-500.0,0.00027397,30]
[340896053,1730040642462,-700.37,0.00027397,30]
[340896054,1730040642474,-500.0,0.00027397,30]
[340896055,1730040642484,-500.0,0.00027397,30]
[340896056,1730040642498,-878.64,0.00027397,30]
[340896057,1730040642510,-500.0,0.00027397,30]
[340896058,1730040642520,-799.91,0.00027397,30]
[340896059,1730040642530,-885.54,0.00027397,30]
[340896060,1730040642541,-500.0,0.00027397,30]
[340896061,1730040642552,-500.0,0.00027397,30]
[340896062,1730040642564,-500.0,0.00027397,30]
[340896063,1730040642577,-2366.92,0.00027397,30]
[340896064,1730040642587,-703.29,0.00027397,30]
[340896065,1730040642597,-505.68,0.00027397,30]
[340896066,1730040642608,-876.18,0.00027397,30]
[340896067,1730040642619,-208.94101099,0.00027397,30]
[340896068,1730040642629,-500.0,0.00027397,30]
[340896069,1730040642643,-1185.19,0.00027397,30]
[340896070,1730040642654,-151.0,0.00027397,7]
[340896071,1730040642665,-151.0,0.00027397,7]
[340896072,1730040642676,-151.0,0.00027397,7]
[340896073,1730040642687,-151.0,0.00027397,7]
[340896074,1730040642696,-151.0,0.00027397,7]
[340896075,1730040642705,-151.0,0.00027397,7]
[340896076,1730040642715,-500.0,0.00027397,30]
[340896077,1730040642725,-151.0,0.00027397,7]
[340896078,1730040642735,-196.765604,0.00027397,7]
[340896079,1730040642744,-500.0,0.00027397,30]
[340896080,1730040642754,-500.0,0.00027397,30]
[340896081,1730040642763,-500.0,0.00027397,30]
[340896082,1730040642774,-151.0,0.00027397,7]
[340896083,1730040642784,-151.0,0.00027397,7]
[340896084,1730040642794,-151.0,0.00027397,7]
[340896085,1730040642805,-151.0,0.00027397,7]
[340896086,1730040642817,-151.0,0.00027397,7]
[340896087,1730040642828,-151.0,0.00027397,7]
[340896088,1730040643002,-151.0,0.00027397,7]
[340896089,1730040643014,-500.0,0.00027397,30]
[340896090,1730040643024,-730.08,0.00027397,30]
[340896091,1730040643036,-500.0,0.00027397,30]
[340896092,1730040643047,-500.0,0.00027397,30]
[340896093,1730040643058,-819.96,0.00027397,30]
[340896094,1730040643069,-1004.38,0.00027397,30]
[340896095,1730040643078,-649.15,0.00027397,30]
[340896096,1730040643089,-577.45,0.00027397,30]
[340896097,1730040643099,-811.42,0.00027397,30]
[340896098,1730040643110,-926.72,0.00027397,30]
[340896099,1730040643121,-374.06029352,0.00027397,30]
[340896100,1730040643132,-500.0,0.00027397,30]
[340896101,1730040643142,-2102.1,0.00027397,30]
[340896102,1730040643152,-500.0,0.00027397,30]
[340896103,1730040643161,-151.0,0.00027397,7]
[340896104,1730040643170,-500.0,0.00027397,30]
[340896105,1730040643180,-500.0,0.00027397,30]
[340896106,1730040643191,-500.0,0.00027397,30]
[340896107,1730040643204,-1122.99,0.00027397,30]
[340896108,1730040643214,-1762.49,0.00027397,30]
[340896109,1730040643225,-1915.23,0.00027397,30]
[340896110,1730040643236,-1078.76,0.00027397,30]
[340896111,1730040643247,-500.0,0.00027397,30]
[340896112,1730040643259,-230.488287,0.00027397,7]
[340896113,1730040643269,-500.0,0.00027397,30]
[340896114,1730040643279,-175.230132,0.00027397,7]
[340896115,1730040643289,-500.0,0.00027397,30]
[340896116,1730040643300,-175.230132,0.00027397,7]
[340896117,1730040643311,-1082.6,0.00027397,30]
[340896118,1730040643322,-574.29465316,0.00027397,30]
[340896119,1730040643334,-500.0,0.00027397,30]
[340896120,1730040643344,-500.0,0.00027397,30]
[340896121,1730040643354,-500.0,0.00027397,30]
[340896122,1730040643365,-500.0,0.00027397,30]
[340896123,1730040643376,-575.25052111,0.00027397,30]
[340896124,1730040643388,-1213.94,0.00027397,30]
[340896125,1730040643398,-150.08720417,0.00027397,30]
[340896126,1730040643409,-508.89288883,0.00027397,7]
[340896127,1730040643418,-500.0,0.00027397,30]
[340896128,1730040643428,-500.0,0.00027397,30]
[340896129,1730040643437,-185.335126,0.00027397,7]
[340896130,1730040643447,-2036.14,0.00027397,30]
[340896131,1730040643457,-185.335126,0.00027397,7]
[340896132,1730040643467,-500.0,0.00027397,30]
[340896133,1730040643476,-185.335126,0.00027397,7]
[340896134,1730040643485,-500.0,0.00027397,30]
[340896135,1730040643497,-185.335126,0.00027397,7]
[340896136,1730040643506,-185.335126,0.00027397,7]
[340896137,1730040643516,-500.0,0.00027397,30]
[340896138,1730040643525,-185.335126,0.00027397,7]
[340896139,1730040643534,-500.0,0.00027397,30]
[340896140,1730040643544,-185.335126,0.00027397,7]
[340896141,1730040643553,-185.335126,0.00027397,7]
[340896142,1730040643563,-185.335126,0.00027397,7]
[340896143,1730040643574,-185.335126,0.00027397,7]
[340896144,1730040643583,-185.335126,0.00027397,7]
[340896145,1730040643595,-185.335126,0.00027397,7]
[340896146,1730040643606,-185.335126,0.00027397,7]
[340896147,1730040643617,-185.335126,0.00027397,7]
[340896148,1730040643626,-713.34,0.00027397,30]
[340896149,1730040643637,-500.0,0.00027397,30]
[340896150,1730040643647,-529.26,0.00027397,30]
[340896151,1730040643659,-941.17,0.00027397,14]
[340896152,1730040643668,-558.07,0.00027397,30]
[340896153,1730040643678,-991.9,0.00027397,30]
[340896154,1730040643689,-850.13,0.00027397,30]
[340896155,1730040643699,-606.866544,0.00027397,30]
[340896156,1730040643710,-978.54,0.00027397,30]
[340896158,1730040643720,-1151.98,0.00027397,30]
[340896159,1730040643730,-572.11,0.00027397,30]
[340896160,1730040643741,-1540.66,0.00027397,30]
[340896161,1730040643751,-500.0,0.00027397,30]
[340896162,1730040643760,-200.0,0.00027397,30]
[340896163,1730040643770,-500.0,0.00027397,30]
[340896164,1730040643780,-500.0,0.00027397,7]
[340896166,1730040643789,-151.0,0.00027397,7]
[340896167,1730040643799,-151.0,0.00027397,7]
[340896168,1730040643808,-151.0,0.00027397,7]
[340896169,1730040643819,-151.0,0.00027397,7]
[340896170,1730040643829,-1387.29,0.00027397,30]
[340896171,1730040643838,-151.0,0.00027397,7]
[340896173,1730040643850,-293.290366,0.00027397,7]
[340896174,1730040643859,-567.75047188,0.00027397,30]
[340896175,1730040643869,-1015.89,0.00027397,30]
[340896176,1730040643879,-500.0,0.00027397,30]
[340896177,1730040643888,-708.85,0.00027397,30]
[340896178,1730040643898,-1716.74,0.00027397,30]
[340896179,1730040643908,-500.0,0.00027397,30]
[340896180,1730040643918,-1724.98,0.00027397,30]
[340896181,1730040643927,-500.0,0.00027397,30]
[340896182,1730040643936,-500.0,0.00027397,30]
[340896183,1730040643946,-151.0,0.00027397,7]
[340896184,1730040643957,-151.0,0.00027397,7]
[340896185,1730040643967,-151.0,0.00027397,7]
[340896186,1730040643977,-500.0,0.00027397,30]
[340896187,1730040643987,-517.12144983,0.00027397,30]
[340896188,1730040643998,-500.0,0.00027397,30]
[340896189,1730040644008,-500.0,0.00027397,30]
[340896191,1730040644019,-500.0,0.00027397,30]
[340896192,1730040644030,-566.11244911,0.00027397,30]
[340896193,1730040644041,-1514.16,0.00027397,30]
[340896194,1730040644051,-500.0,0.00027397,30]
[340896195,1730040644062,-500.0,0.00027397,30]
[340896196,1730040644072,-500.0,0.00027397,30]
[340896197,1730040644081,-1428.91,0.00027397,30]
[340896198,1730040644091,-1267.62,0.00027397,30]
[340896199,1730040644101,-500.0,0.00027397,30]
[340896200,1730040644111,-7931.38834031,0.00027397,30]
[340896201,1730040644299,-5270.01570441,0.00027397,30]
[340896202,1730040644321,-9506.6578592,0.00027397,30]
[340896203,1730040644689,-4170.80457249,0.00027397,30]
[340896204,1730040644703,-10050.70352359,0.00027397,30]
[340896205,1730040644714,-1883.91,0.00027397,30]
[340896206,1730040644723,-966.32,0.00027397,30]
[340896207,1730040644734,-500.0,0.00027397,30]
[340896208,1730040644744,-239.67668733,0.00027397,30]
[340896209,1730040644755,-593.24971701,0.00027397,30]
[340896210,1730040644765,-500.0,0.00027397,30]
[340896211,1730040644776,-500.0,0.00027397,30]
[340896212,1730040644788,-631.7,0.00027397,30]
[340896213,1730040644803,-761.95,0.00027397,30]
[340896214,1730040644812,-4252.95073355,0.00027397,21]
[340896215,1730040644825,-2261.25131065,0.00027397,21]
[340896227,1730040646531,-2377.9698097,0.00027396,2]
[340896228,1730040646543,-332.1301903,0.00027397,21]
[340896229,1730040646557,-918.2777655,0.00027397,21]
[340896230,1730040646568,-575.51672367,0.00027397,30]
[340896231,1730040646581,-500.0,0.00027397,30]
[340896232,1730040646591,-500.0,0.00027397,30]
[340896233,1730040646603,-783.19,0.00027397,30]
[340896234,1730040646613,-500.0,0.00027397,30]
[340896235,1730040646623,-500.0,0.00027397,30]
[340896236,1730040646632,-795.35,0.00027397,30]
[340896237,1730040646642,-3346.21,0.00027397,30]
[340896238,1730040646653,-216.18,0.00027397,7]
[340896239,1730040646664,-170.41885031,0.00027397,30]
[340896240,1730040646675,-500.0,0.00027397,30]
[340896241,1730040646687,-500.0,0.00027397,30]
[340896242,1730040646697,-500.0,0.00027397,30]
[340896243,1730040646706,-500.0,0.00027397,30]
[340896244,1730040646716,-772.78,0.00027397,30]
[340896245,1730040646726,-500.0,0.00027397,30]
[340896246,1730040646735,-500.0,0.00027397,30]
[340896247,1730040646746,-500.0,0.00027397,30]
[340896248,1730040646757,-500.0,0.00027397,30]
[340896249,1730040646768,-1146.18,0.00027397,30]
[340896250,1730040646779,-500.0,0.00027397,30]
[340896251,1730040646789,-4913.5,0.00027397,30]
[340896252,1730040646800,-1999.13,0.00027397,30]
[340896253,1730040646812,-1197.23,0.00027397,30]
[340896254,1730040646822,-640.81,0.00027397,30]
[340896255,1730040646832,-500.0,0.00027397,30]
[340896256,1730040646842,-274.700923,0.00027397,7]
[340896257,1730040646852,-274.700923,0.00027397,7]
[340896258,1730040646862,-274.700923,0.00027397,7]
[340896259,1730040646872,-274.700923,0.00027397,7]
[340896260,1730040646885,-274.700923,0.00027397,7]
[340896261,1730040646895,-274.700923,0.00027397,7]
[340896262,1730040646904,-151.0,0.00027397,7]
[340896263,1730040646914,-656.04,0.00027397,30]
[340896264,1730040646925,-151.0,0.00027397,7]
[340896265,1730040646935,-274.700923,0.00027397,7]
[340896266,1730040646947,-151.0,0.00027397,7]
[340896267,1730040646957,-10835.26,0.00027397,30]
[340896268,1730040646967,-500.0,0.00027397,30]
[340896269,1730040646976,-274.700923,0.00027397,7]
[340896270,1730040646988,-2128.14,0.00027397,30]
[340896271,1730040646999,-274.700923,0.00027397,7]
[340896272,1730040647011,-274.700923,0.00027397,7]
[340896273,1730040647021,-274.700923,0.00027397,7]
[340896274,1730040647031,-274.700923,0.00027397,7]
[340896275,1730040647041,-951.28,0.00027397,30]
[340896276,1730040647051,-500.0,0.00027397,30]
[340896277,1730040647061,-500.0,0.00027397,30]
[340896278,1730040647072,-274.700923,0.00027397,7]
[340896279,1730040647083,-274.700923,0.00027397,7]
[340896280,1730040647094,-500.0,0.00027397,30]
[340896281,1730040647103,-408.52216004,0.00027397,30]
[340896282,1730040647113,-151.41046742,0.00027397,30]
[340896283,1730040647123,-532.33335343,0.00027397,30]
[340896284,1730040647133,-1177.88,0.00027397,30]
[340896285,1730040647143,-500.0,0.00027397,30]
[340896286,1730040647153,-587.44988229,0.00027397,30]
[340896287,1730040647163,-500.0,0.00027397,30]
[340896288,1730040647173,-151.0,0.00027397,7]
[340896289,1730040647183,-500.0,0.00027397,30]
[340896290,1730040647192,-151.0,0.00027397,7]
[340896291,1730040647203,-151.0,0.00027397,7]
[340896292,1730040647214,-151.0,0.00027397,7]
[340896293,1730040647224,-151.0,0.00027397,7]
[340896294,1730040647234,-286.59793,0.00027397,7]
[340896295,1730040647244,-1952.4,0.00027397,30]
[340896296,1730040647253,-500.0,0.00027397,30]
[340896297,1730040647263,-151.0,0.00027397,7]
[340896298,1730040647274,-603.39413733,0.00027397,30]
[340896299,1730040647283,-500.0,0.00027397,30]
[340896300,1730040647294,-151.0,0.00027397,7]
[340896301,1730040647305,-151.0,0.00027397,7]
[340896302,1730040647315,-151.0,0.00027397,7]
[340896303,1730040647325,-401.87058004,0.00027397,30]
[340896304,1730040647335,-151.0,0.00027397,7]
[340896305,1730040647345,-151.0,0.00027397,7]
[340896306,1730040647358,-151.0,0.00027397,7]
[340896307,1730040647367,-1815.49,0.00027397,30]
[340896308,1730040647376,-500.0,0.00027397,30]
[340896309,1730040647386,-3433.95,0.00027397,30]
[340896310,1730040647396,-500.0,0.00027397,30]
[340896311,1730040647405,-1412.36,0.00027397,30]
[340896312,1730040647414,-866.36,0.00027397,30]
[340896313,1730040647424,-1342.51,0.00027397,30]
[340896314,1730040647433,-2990.64,0.00027397,30]
[340896315,1730040647442,-1961.81,0.00027397,30]
[340896316,1730040647452,-880.63,0.00027397,30]
[340896317,1730040647463,-500.0,0.00027397,30]
[340896318,1730040647473,-500.0,0.00027397,30]
[340896319,1730040647482,-700.8,0.00027397,30]
[340896320,1730040647492,-977.56,0.00027397,30]
[340896321,1730040647506,-500.0,0.00027397,30]
[340896322,1730040647517,-559.35,0.00027397,30]
[340896323,1730040647528,-500.0,0.00027397,30]
[340896324,1730040647539,-500.0,0.00027397,30]
[340896325,1730040647548,-1764.78,0.00027397,30]
[340896326,1730040647557,-6637.4,0.00027397,30]
[340896327,1730040647568,-500.0,0.00027397,30]
[340896328,1730040647579,-3057.27,0.00027397,30]
[340896329,1730040647589,-500.0,0.00027397,30]
[340896330,1730040647599,-882.39,0.00027397,30]
[340896331,1730040647608,-488.89047201,0.00027397,30]